Cogmind - Beta 15 @@@ ROGUE MODE // 2025.06.06 @ 22:19:11 Player: OctagonalPrism Result: Destroyed by H-77 Assassin with Coil Gun Performance ------------- Evolutions (6) 3000 Regions Visited (17) 3400 Robots Destroyed (206) 1030 Value Destroyed (7699) 7699 Prototype IDs (18) 360 Alien Tech Used (0) 0 Bonus (3030) 3030 TOTAL SCORE: 18519 Bonus ------- High Alert Combat Kills 300 Follower Combat Kills 1430 Network Hubs Disabled 200 Registered with UFD 300 Met Optimus in HQ 500 Built Enhanced Grunts 300 Cogmind --------- Core Integrity 0/1150 Matter 300/300 Energy 98/100 System Corruption 7% Temperature Cool (0) Movement Core (50) Location -4/Factory Parts ------- > --- POWER (2) -------- (None) > --- PROPULSION (4) --- (None) > --- UTILITY (10) ----- Advanced Signal Interpreter Advanced Targeting Computer Improved Target Analyzer > --- WEAPON (3) ------- (None) > --- INVENTORY (5) ---- Centrium Heavy Treads Experimental Sensor Array Advanced Terrain Scanner Improved Kinecellerator Peak State ------------ > --- POWER ------------ Reinforced Fission Core Light Antimatter Reactor > --- PROPULSION ------- Armored Medium Treads Armored Medium Treads Armored Medium Treads Armored Medium Treads > --- UTILITY ---------- Advanced Cryofiber Web Medium Storage Unit Experimental Sensor Array Advanced Signal Interpreter Advanced Terrain Scanner Advanced Terrain Scan Processor Advanced Targeting Computer Improved Target Analyzer Centrium Medium Armor Plating Improved System Shield > --- WEAPON ----------- Coil Gun Hypervelocity Coil Gun Heavy Gauss Cannon > --- INVENTORY -------- Centrium Heavy Treads Medium Storage Unit Compact Matter Pod Improved Kinecellerator Improved Medium Armor Plating Long-range Tractor Beam Improved Trap Extractor Hypervelocity Coil Gun Heavy Mace [Rating: 113] Favorites ----------- Power Heavy Ion Engine Engine Heavy Ion Engine Power Core Reinforced Fission Core Reactor Antimatter Reactor Propulsion Armored Treads Treads Armored Treads Leg Myomer Leg Wheel Wheel Utility Medium Storage Unit Device Advanced Terrain Scanner Storage Medium Storage Unit Processor Target Analyzer Hackware Improved System Shield Protection Hardened Light Armor Plating Weapon High-powered Shotgun Energy Gun Heavy EM Pulse Gun Ballistic Gun High-powered Shotgun Ballistic Cannon Heavy Gauss Cannon Impact Weapon Great Maul Slashing Weapon Mining Claw Special Melee Weapon Datajack Build | -11 -10 -10 -9 -9 -8 -8 -8 -8 -6 -6 -6 -6 -6 -5 -5 -5 -4 ------- Run | Yrd Mat Min Mat Min Mat Sto Rec Scr Fac Ext Cet Arc Hub Fac Upp Upp Fac Slots Evolved 12 | . . . 2 . 2 . . . 4 . . . . 2 . . 2 Power 1 | . . . . . . . . . . . . . . . . . 1 Propulsion 2 | . . . . . 1 . . . 1 . . . . . . . . Utility 8 | . . . 2 . 1 . . . 2 . . . . 2 . . 1 Weapon 1 | . . . . . . . . . 1 . . . . . . . . Parts Attached 144 | 8 21 2 24 . 5 8 2 7 1 7 7 3 2 17 3 . 27 Power 18 | 1 1 1 3 . 1 2 . . . . 2 . . 1 . . 6 Engine 9 | 1 1 1 3 . 1 2 . . . . . . . . . . . Core 4 | . . . . . . . . . . . 1 . . . . . 3 Reactor 5 | . . . . . . . . . . . 1 . . 1 . . 3 Propulsion 36 | 3 3 . 7 . . 3 . 3 . 1 2 1 1 5 . . 7 Treads 23 | 1 1 . 6 . . 3 . 1 . 1 2 1 1 5 . . 1 Leg 3 | . . . . . . . . . . . . . . . . . 3 Wheel 10 | 2 2 . 1 . . . . 2 . . . . . . . . 3 Hover . | . . . . . . . . . . . . . . . . . . Flight . | . . . . . . . . . . . . . . . . . . Utility 57 | 2 9 1 8 . 3 2 2 3 1 4 3 . 1 6 2 . 10 Device 14 | 1 1 1 3 . . 1 . 1 . . . . . 2 1 . 3 Storage 6 | 1 1 . 1 . 1 . . . . . . . . . 1 . 1 Processor 9 | . 2 . . . 1 . . 1 1 1 . . 1 1 . . 1 Hackware 4 | . . . . . 1 . . . . . . . . 1 . . 2 Protection 24 | . 5 . 4 . . 1 2 1 . 3 3 . . 2 . . 3 Artifact . | . . . . . . . . . . . . . . . . . . Weapon 33 | 2 8 . 6 . 1 1 . 1 . 2 . 2 . 5 1 . 4 Energy Gun 6 | . 3 . 1 . . . . . . . . . . . . . 2 Energy Cannon . | . . . . . . . . . . . . . . . . . . Ballistic Gun 21 | 2 4 . 4 . . 1 . 1 . 2 . 2 . 4 1 . . Ballistic Cannon 1 | . . . . . . . . . . . . . . . . . 1 Launcher . | . . . . . . . . . . . . . . . . . . Special Weapon . | . . . . . . . . . . . . . . . . . . Impact Weapon 3 | . . . . . 1 . . . . . . . . 1 . . 1 Slashing Weapon 1 | . 1 . . . . . . . . . . . . . . . . Piercing Weapon . | . . . . . . . . . . . . . . . . . . Special Melee Weapon 1 | . . . 1 . . . . . . . . . . . . . . Unidentified Prototypes 5 | . . . . . . 2 . . . . 2 . . 1 . . . Corrupted Parts 1 | . . 1 . . . . . . . . . . . . . . . System Corruption 4 | . . 4 . . . . . . . . . . . . . . . Parts Lost 57 | . 4 . 4 . . 1 2 . . 2 6 1 1 . 3 . 33 Power 7 | . . . 1 . . 1 . . . . 1 . . . . . 4 Propulsion 14 | . 1 . . . . . . . . . 3 . . . . . 10 Utility 18 | . 1 . 2 . . . 1 . . . 1 . . . 1 . 12 Weapon 18 | . 2 . 1 . . . 1 . . 2 1 1 1 . 2 . 7 Highest Loss Streak 29 | . 1 . 1 . . 1 1 . . 1 6 1 1 . 1 . 29 To Critical Strikes 2 | . . . . . . . . . . 1 1 . . . . . . Average Backups 9 | 2 7 10 8 10 9 9 9 9 8 9 8 9 10 9 8 9 8 Power . | . 1 . . . . . 1 1 1 . . . 1 . . . . Propulsion . | 1 . . . 1 . . . . . . . . . . . 1 1 Utility 5 | . 4 6 4 3 3 4 5 5 3 5 5 6 7 6 5 7 5 Weapon 2 | . 1 3 2 4 3 3 2 2 3 2 . 1 1 1 . . 1 Tool/Special . | . . . . . . . . . . . . . . . . . . Unused Backups 20 | . 2 . 6 . 2 3 . . . 1 1 1 2 . . . 2 Power 6 | . 1 . 1 . . 1 . . . 1 1 . 1 . . . . Propulsion . | . . . . . . . . . . . . . . . . . . Utility 6 | . . . 2 . 1 1 . . . . . . 1 . . . 1 Weapon 6 | . 1 . 3 . 1 1 . . . . . . . . . . . Tool/Special 2 | . . . . . . . . . . . . 1 . . . . 1 Average Slot Usage (%) 96 | . 99 100 99 100 98 98 99 99 85 94 86 91 92 94 96 100 92 Engine 6 | . 14 14 10 11 9 8 9 9 6 6 1 . . . . . . Reactor 1 | . . . . . . . . . . . 4 6 6 4 5 5 3 Treads 21 | . 14 14 17 22 27 27 27 25 20 21 19 20 20 17 22 23 18 Wheel 2 | . 14 14 4 . . . . 1 . . . . . . . . . Device 9 | . 6 12 19 11 10 8 9 8 12 3 . . 4 8 9 17 11 Storage 8 | . 14 14 11 11 9 9 9 9 6 6 6 6 6 5 5 5 4 Processor 13 | . 2 . . . 2 9 9 17 20 25 26 26 26 23 23 23 20 Hackware 1 | . . . . . 3 . . . . . . . . 5 5 5 4 Protection 10 | . 4 1 13 22 18 17 17 9 6 9 13 13 8 7 6 . 5 Energy Gun 2 | . 8 28 7 . . . . . . . . . . . . . . Ballistic Gun 15 | . 18 . 14 22 16 16 18 18 13 19 13 18 19 12 14 17 10 Peak Build Rating 113 | 7 10 13 26 26 32 37 35 37 46 54 77 84 86 101 100 93 113 Average Rating 47 | 5 8 10 20 25 31 32 34 35 45 47 65 82 84 92 92 93 96 On Entrance 46 | . 7 10 10 25 26 32 33 35 36 46 48 74 84 82 96 93 93 Naked Turns . | . . . . . . . . . . . . . . . . . . Heaviest Build 80 | 13 24 24 32 32 39 42 40 41 36 47 55 58 58 64 64 48 80 Greatest Support 127 | 20 20 10 45 44 66 66 60 60 60 80 120 123 123 127 108 108 108 Greatest Overweight (x) 4 | 1 4 2 2 . . . . 2 . . 1 . . . . . 4 Average Overweight (x) . | . . 2 . . . . . . . . . . . . . . . Largest Inventory Capacity 10 | 8 10 10 10 10 10 10 10 10 10 10 10 10 10 10 10 10 10 Average Capacity 9 | 7 9 10 10 10 10 10 10 10 10 10 10 10 10 10 10 10 9 Most Carried 10 | 4 10 10 10 10 10 10 10 10 9 10 9 10 10 10 10 10 10 Average Carried 9 | 2 7 9 8 10 9 9 9 9 8 9 8 9 9 9 9 10 9 Final Capacity 10 | 8 10 10 10 10 10 10 10 10 10 10 10 10 10 10 10 10 5 Final Carried 10 | 4 10 10 10 10 10 10 9 10 8 9 8 10 10 10 10 10 5 Class Distribution -------------------- 61% | Mutant 8% | Skirmisher 7% | Gunner 7% | Scavenger-Assassin 5% | Scavenger-Tank 5% | Scavenger-Mutant Dominant Class ---------------- Mutant | -10/Materials Mutant | -10/Mines Mutant | -9/Materials Mutant | -9/Mines Mutant | -8/Materials Mutant | -8/Storage Mutant | -8/Recycling Mutant | -8/Scraptown Skirmisher | -6/Factory Gunner | -6/Extension Scavenger-Mutant | -6/Cetus Scavenger-Tank | -6/Archives Scavenger-Tank | -6/Hub_04(d) Scavenger-Assassin | -5/Factory Skirmisher | -5/Upper Caves Skirmisher | -5/Upper Caves Scavenger-Assassin | -4/Factory Resources | -11 -10 -10 -9 -9 -8 -8 -8 -8 -6 -6 -6 -6 -6 -5 -5 -5 -4 ----------- Run | Yrd Mat Min Mat Min Mat Sto Rec Scr Fac Ext Cet Arc Hub Fac Upp Upp Fac Matter Collected 7799 | 308 517 84 1034 20 311 781 53 60 . 761 170 373 416 912 670 . 1329 Remotely 557 | . . . . . . . . . . . . . . 260 . . 297 Salvage Created 8059 | 117 642 14 1645 20 252 816 93 . . 793 154 376 542 974 170 . 1451 Parts 483 | 8 38 4 118 6 17 49 7 . . 36 8 19 28 58 10 . 77 Haulers Intercepted 10 | . 2 . 4 . 2 2 . . . . . . . . . . . Recyclers Shooed 4 | 1 . . 2 . . . . . . 1 . . . . . . . Parts Field Recycled . | . . . . . . . . . . . . . . . . . . Retrieved Matter . | . . . . . . . . . . . . . . . . . . Parts Self-Destructed 16 | . . . . . . . . . . . . . . . 16 . . Prevented . | . . . . . . . . . . . . . . . . . . Kills | -11 -10 -10 -9 -9 -8 -8 -8 -8 -6 -6 -6 -6 -6 -5 -5 -5 -4 ------- Run | Yrd Mat Min Mat Min Mat Sto Rec Scr Fac Ext Cet Arc Hub Fac Upp Upp Fac Combat Hostiles Destroyed 147 | . 14 . 35 3 6 21 2 . . 14 2 . 8 15 2 . 25 Guns 134 | . 14 . 31 3 6 21 2 . . 14 2 . 8 13 2 . 18 Cannons 3 | . . . . . . . . . . . . . . . . . 3 AOE 7 | . . . 2 . . . . . . . . . . 2 . . 3 Classes Destroyed 16 | 2 7 . 3 . . . . . . 1 . . 1 . 1 . 1 Worker 11 | . 2 . 1 . . 3 . . . 1 . . 3 . . . 1 Builder 4 | . . . 2 . . . . . . . . . . 2 . . . Tunneler 3 | 2 . 1 . . . . . . . . . . . . . . . Hauler 10 | . 2 . 4 . 2 2 . . . . . . . . . . . Recycler 3 | 1 . . 1 . . . . . . . . . . . . . 1 Mechanic 1 | . 1 . . . . . . . . . . . . . . . . Operator 14 | . 1 . 2 . . . . . . . . 8 1 2 . . . Watcher 12 | . 3 . 4 . 1 . . . . 1 . . 1 1 . . 1 Swarmer 32 | . 5 . 6 3 3 4 . . . . . . . . . . 11 Grunt 69 | . 9 . 18 . 1 14 . . . 8 . . 5 6 . . 8 Brawler 1 | . . . . . . . . . . . . . . . . . 1 Duelist 2 | . . . 1 . . 1 . . . . . . . . . . . Sentry 22 | . . . 10 . 2 2 2 . . 5 . . 1 . . . . Hunter 5 | . . . . . . . . . . . . . 1 2 1 . 1 Programmer 13 | . . . . . . . . . . 1 . . 1 7 . . 4 Behemoth 1 | . . . . . . . . . . . . . . . 1 . . Cetus Guard 2 | . . . . . . . . . . . 2 . . . . . . Enhanced Grunt 1 | . . . . . . . . . . . . 1 . . . . . Best Kill Streak 12 | 3 4 1 6 3 3 12 1 . . 3 2 4 6 4 1 . 6 Combat Bots Only 6 | . 3 . 6 3 3 4 1 . . 3 2 . 5 4 1 . 5 Max Kills in Single Turn 4 | 1 1 1 2 2 2 2 1 . . 2 1 1 2 2 1 . 4 Gunslinging 1 | . . . . 1 1 . . . . 1 . . . 1 . . . Exploded 3 | . . . 1 . . . . . . . . . . 2 . . 3 Melee . | . . . . . . . . . . . . . . . . . . Uniques/NPCs Destroyed . | . . . . . . . . . . . . . . . . . . Combat | -11 -10 -10 -9 -9 -8 -8 -8 -8 -6 -6 -6 -6 -6 -5 -5 -5 -4 -------- Run | Yrd Mat Min Mat Min Mat Sto Rec Scr Fac Ext Cet Arc Hub Fac Upp Upp Fac Hostile Shots Fired 1346 | . 84 . 117 7 32 114 8 . . 156 46 5 101 109 74 . 493 Missed 386 | . 20 . 37 . 5 27 1 . . 58 16 . 28 31 19 . 144 Hits 960 | . 64 . 80 7 27 87 7 . . 98 30 5 73 78 55 . 349 Melee 8 | . . . 2 . . 3 . . . 2 . . . . . . 1 Projectile 952 | . 64 . 78 7 27 84 7 . . 96 30 5 73 78 55 . 348 AOE 1 | . . . . . . . . . . . . . . . . . 1 Critical Strikes 34 | . . . 1 . . 4 . . . 5 6 1 2 2 4 . 9 Damage Taken 14734 | . 805 2 1142 56 304 1237 88 . . 958 671 216 1051 1375 1114 . 5715 Core 1806 | . 120 . 165 9 8 79 . . . 50 55 21 33 34 72 . 1160 Absorbed by Shields 326 | . . . . . . . . . . 232 94 . . . . . . Reduced by Siege Mode 5 | . . . . . . . . . . . . . . 5 . . . Redirected to Shielding 60 | . 8 . 52 . . . . . . . . . . . . . . Ignored by Resistances 153 | . . . . . . 10 12 . . 49 9 . . . . . 73 Regen/Repaired (Parts) 258 | . . . . . 135 123 . . . . . . . . . . . Core Remaining (%) 77 | 100 . 52 . 56 . . . 84 . . . . 81 . . 89 . Volleys Fired 612 | 7 91 1 115 3 16 60 4 . 2 46 15 34 32 64 45 . 77 Largest 3 | 2 2 2 2 2 2 2 2 . 2 3 2 3 3 3 3 . 3 Hottest 121 | 40 90 90 90 50 50 50 50 . 50 83 53 94 94 100 100 . 121 Shots Fired 1267 | 14 159 2 227 6 32 120 7 . 4 122 30 87 92 138 69 . 158 Gun 1239 | 14 159 2 227 6 32 120 7 . 4 122 30 87 92 138 69 . 130 Cannon 28 | . . . . . . . . . . . . . . . . . 28 Launcher . | . . . . . . . . . . . . . . . . . . Special . | . . . . . . . . . . . . . . . . . . Kinetic 1153 | 14 143 . 134 6 32 120 7 . 4 122 30 87 92 138 69 . 155 Thermal 1 | . . . . . . . . . . . . . . . . . 1 Explosive . | . . . . . . . . . . . . . . . . . . Electromagnetic 113 | . 16 2 93 . . . . . . . . . . . . . 2 Robot Hit Streak 26 | 11 19 1 11 4 10 20 8 . 1 15 14 6 26 13 16 . 13 Robot Miss Streak 6 | 1 5 1 6 3 4 6 3 . 3 4 2 3 2 4 3 . 3 Penetration Max 2 | . . . . . . . . . . 2 1 1 1 . 1 . 1 Secondary Targets 20 | . 3 . . 1 1 3 . . . 3 2 . 2 3 . . 2 Max Gunslinging Chain 1 | . 1 . . 1 1 1 . . . 1 1 . 1 1 . . 1 Shots Hit Robots 887 | 11 98 1 153 5 25 91 6 . 3 99 24 50 65 94 51 . 111 Core Hits 422 | 4 37 1 81 3 16 55 4 . . 53 11 23 32 33 18 . 51 Critical Kills 38 | . . . . . 1 3 . . . 6 . 3 2 9 1 . 13 Critical Parts Destroyed 77 | . 2 . . 1 . 6 . . . 8 . 3 4 20 12 . 21 Critical Strikes 132 | . 3 . 2 1 1 9 . . . 16 . 7 7 29 19 . 38 Destroy 122 | . 2 . 1 1 1 9 . . . 16 . 7 7 27 19 . 32 Blast 4 | . . . . . . . . . . . . . . . . . 4 Corrupt 2 | . 1 . 1 . . . . . . . . . . . . . . Smash 4 | . . . . . . . . . . . . . . 2 . . 2 Melee Attacks 35 | . 5 . . . 1 7 . . . . 6 . . 6 . . 10 Impact 30 | . . . . . 1 7 . . . . 6 . . 6 . . 10 Slashing 5 | . 5 . . . . . . . . . . . . . . . . Piercing . | . . . . . . . . . . . . . . . . . . Sneak Attacks 3 | . . . . . . . . . . . . . . 2 . . 1 Combat Hostiles . | . . . . . . . . . . . . . . . . . . Follow-up Attacks . | . . . . . . . . . . . . . . . . . . Damage Inflicted 18147 | 133 1489 15 2931 106 550 1851 117 . 40 1839 547 1316 1920 2017 443 . 2833 Guns 15241 | 133 1196 15 2627 106 550 1851 117 . 40 1839 547 1316 1553 1531 443 . 1377 Cannons 749 | . . . . . . . . . . . . . . . . . 749 Explosions 1754 | . 293 . 304 . . . . . . . . . 367 223 . . 567 Melee 403 | . . . . . . . . . . . . . . 263 . . 140 Ramming . | . . . . . . . . . . . . . . . . . . Kinetic 14885 | 133 1054 . 1743 106 550 1851 117 . 40 1839 547 1316 1553 1531 443 . 2062 Thermal 1077 | . 20 . 304 . . . . . . . . . . 170 . . 583 Explosive 273 | . 273 . . . . . . . . . . . . . . . . Electromagnetic 1509 | . 142 15 884 . . . . . . . . . 367 53 . . 48 Impact 403 | . . . . . . . . . . . . . . 263 . . 140 Slashing . | . . . . . . . . . . . . . . . . . . Piercing . | . . . . . . . . . . . . . . . . . . Highest Corruption 7 | . . 4 . . . . . . . . . . 2 7 5 5 7 Average Corruption 5 | . . 4 . . . . . . . . . . 2 5 5 5 4 Corruption Purged 3 | . . . . . . . . . . . . . . 3 . . . Corruption Blocked . | . . . . . . . . . . . . . . . . . . Effects 82 | . . 1 . . . . . . . . . . . 18 37 1 25 Message Errors 23 | . . . . . . . . . . . . . . 6 10 . 7 Matter Fused 17 | . . . . . . . . . . . . . . 4 7 1 5 Heat Flow Errors 7 | . . 1 . . . . . . . . . . . . 6 . . Energy Discharges 12 | . . . . . . . . . . . . . . 2 3 . 7 Parts Rejected 3 | . . . . . . . . . . . . . . . . . 3 Data Loss (minor) 9 | . . . . . . . . . . . . . . 2 5 . 2 Data Loss (major) 3 | . . . . . . . . . . . . . . 1 1 . 1 Misfires 1 | . . . . . . . . . . . . . . . 1 . . Alerts 3 | . . . . . . . . . . . . . . 1 2 . . Weapon Failures 4 | . . . . . . . . . . . . . . 2 2 . . Overload Shots . | . . . . . . . . . . . . . . . . . . Overflow Damage 648 | . 72 . 16 . . . . . . . . . 19 223 . . 318 Projectiles 23 | . . . . . . . . . . . . . . . . . 23 Explosions 262 | . 72 . 16 . . . . . . . . . 19 . . . 155 Melee 363 | . . . . . . . . . . . . . . 223 . . 140 Knockbacks 8 | . . . . . . . . . . . . . . . . . 8 Impact . | . . . . . . . . . . . . . . . . . . Kinetic 8 | . . . . . . . . . . . . . . . . . 8 Secondary . | . . . . . . . . . . . . . . . . . . Self-Inflicted Damage 322 | . 126 . 103 . . . . . . . . . 93 . . . . Shots 6 | . 2 . 3 . . . . . . . . . 1 . . . . Rammed . | . . . . . . . . . . . . . . . . . . Targets Rammed . | . . . . . . . . . . . . . . . . . . Kicked . | . . . . . . . . . . . . . . . . . . Crushed . | . . . . . . . . . . . . . . . . . . Highest Temperature 388 | . 162 163 336 36 39 138 5 . . 85 44 122 169 81 261 . 388 Average Temperature 63 | . 34 46 97 19 12 58 3 . . 26 17 41 52 21 90 . 142 Received Heat Transfer 2618 | . 264 . 357 . 72 630 27 . . 313 98 12 231 135 60 . 419 Effects 2 | . . . 1 . . . . . . . . . . . . . 1 Shutdowns 1 | . . . . . . . . . . . . . . . . . 1 Short Circuit 1 | . . . 1 . . . . . . . . . . . . . . Siege Activations 3 | . . . . . . . . . . . . . 2 1 . . . Total Turns 65 | . . . . . . . . . . . . . 34 31 . . . Longest Duration 31 | . . . . . . . . . . . . . 19 31 . . . Martial Activations . | . . . . . . . . . . . . . . . . . . Shielding Activations . | . . . . . . . . . . . . . . . . . . Robots Disrupted . | . . . . . . . . . . . . . . . . . . Combat Hostiles . | . . . . . . . . . . . . . . . . . . Robots Corrupted 4 | . . . 2 . . . . . . . . . . 1 . . 1 Combat Hostiles 3 | . . . 2 . . . . . . . . . . . . . 1 Parts Fried 6 | . . . 1 . . . . . . . . . . 3 . . 2 Impact Corruptions 11 | . . . . . . . . . . . . . . 8 . . 3 Robots Melted . | . . . . . . . . . . . . . . . . . . Combat Hostiles . | . . . . . . . . . . . . . . . . . . Parts Melted 1 | . . . . . . . . . . . 1 . . . . . . Heat Transferred 1137 | . 50 . 450 . . . . . . . . . . 200 . . 437 Parts Sabotaged . | . . . . . . . . . . . . . . . . . . Parts Stolen . | . . . . . . . . . . . . . . . . . . Parts Stripped . | . . . . . . . . . . . . . . . . . . Power Chain Reactions 6 | . 1 . 5 . . . . . . . . . . . . . . Alert | -11 -10 -10 -9 -9 -8 -8 -8 -8 -6 -6 -6 -6 -6 -5 -5 -5 -4 ------- Run | Yrd Mat Min Mat Min Mat Sto Rec Scr Fac Ext Cet Arc Hub Fac Upp Upp Fac Maximum Alert Level 3 | . . . 2 . . 1 . . . 2 1 1 2 3 . . 2 Low Security (%) 67 | 100 100 100 36 100 100 73 100 . 100 72 78 88 48 9 . . 64 Level 1 25 | . . . 57 . . 26 . . . 18 21 11 48 61 . . 19 Level 2 5 | . . . 6 . . . . . . 9 . . 2 23 . . 16 Level 3 . | . . . . . . . . . . . . . . 5 . . . Level 4 . | . . . . . . . . . . . . . . . . . . Level 5 . | . . . . . . . . . . . . . . . . . . High Security . | . . . . . . . . . . . . . . . . . . Max Security . | . . . . . . . . . . . . . . . . . . Peak Influence 749 | 5 184 22 428 164 89 302 181 . . 607 330 235 591 749 . . 554 Initial 330 | . . 22 . 164 28 . 109 . . . 330 48 38 289 . . . Average 154 | . 67 1 219 122 22 140 36 . . 138 184 166 225 361 . . 178 Influence Increases 7817 | 15 576 5 1172 70 232 685 236 . . 1145 192 343 1067 977 75 . 1027 Destroy 0b10 Robot/C 3600 | . 280 . 700 60 120 440 40 . . 560 140 80 340 300 40 . 500 Destroy 0b10 Robot/NC 320 | 15 45 5 70 . 15 25 . . . 20 5 45 35 25 . . 15 Destroy Leader 770 | . 70 . 206 10 36 84 . . . 86 10 . 104 62 20 . 82 Allied During Kill 734 | . . . . . . 3 . . . 404 35 125 167 . . . . Trap Triggered on 0b10 20 | . . . . . 20 . . . . . . . . . . . . Successful Hack 251 | . 19 . 61 . 24 6 16 . . 70 . . 8 33 . . 14 Select Force Hacks 240 | . 30 . . . . 30 180 . . . . . . . . . . Disable Machine 810 | . 45 . 45 . . 60 . . . . . 75 165 225 . . 195 Destroy Structure 592 | . 27 . 30 . 2 7 . . . 5 2 18 143 272 . . 86 Partial Spotted 15 | . . . . . . . . . . . . . 15 . . . . Lose Combat Pursuer 465 | . 60 . 60 . 15 30 . . . . . . 90 60 15 . 135 Influence Decreases 7486 | 15 518 63 750 418 304 406 517 . . 554 661 354 587 974 669 . 696 Entered New Map 1445 | . . 36 . 258 46 2 172 . . . 261 74 73 302 221 . . Time Decay 4647 | 15 478 27 560 160 258 374 331 . . 394 180 270 294 522 418 . 366 Lost Part 554 | . 40 . 40 . . 10 14 . . 10 60 10 10 . 30 . 330 Lost Ally 390 | . . . . . . 20 . . . 150 160 . 60 . . . . Purge Threat 450 | . . . 150 . . . . . . . . . 150 150 . . . Squads Dispatched 43 | . 2 . 4 . 1 6 . . 3 4 1 . 9 7 . . 6 Investigation 18 | . 2 . 1 . . 2 . . 2 3 1 . 2 2 . . 3 Extermination 7 | . . . . . . . . . . . . . 1 3 . . 3 Reinforcement 13 | . . . 3 . 1 2 . . 1 1 . . 3 2 . . . Assault 2 | . . . . . . 2 . . . . . . . . . . . Garrison 3 | . . . . . . . . . . . . . 3 . . . . Intercept . | . . . . . . . . . . . . . . . . . . Searches Triggered . | . . . . . . . . . . . . . . . . . . Construction Impeded 1 | . . . . . . . . . . . . . . 1 . . . Haulers Reinforced 1 | . . . . . . . . . . . . . 1 . . . . Active Scanning Responses . | . . . . . . . . . . . . . . . . . . Cargo Convoy Interrupts . | . . . . . . . . . . . . . . . . . . Stealth | -11 -10 -10 -9 -9 -8 -8 -8 -8 -6 -6 -6 -6 -6 -5 -5 -5 -4 --------- Run | Yrd Mat Min Mat Min Mat Sto Rec Scr Fac Ext Cet Arc Hub Fac Upp Upp Fac Distress Signals 23 | . 1 . 10 . . 4 . . . . 1 . 1 1 . . 5 Communications Jammed . | . . . . . . . . . . . . . . . . . . Distress Signals . | . . . . . . . . . . . . . . . . . . Times Spotted 289 | . 28 . 56 3 10 39 2 . 1 31 7 19 26 22 4 . 41 Peak Tracking Total 10 | . 6 . 6 3 3 10 1 . 1 5 5 1 7 4 2 . 9 Tactical Retreats 20 | . 4 . 3 . 1 2 . . . . . . 2 3 1 . 4 Traps | -11 -10 -10 -9 -9 -8 -8 -8 -8 -6 -6 -6 -6 -6 -5 -5 -5 -4 ------- Run | Yrd Mat Min Mat Min Mat Sto Rec Scr Fac Ext Cet Arc Hub Fac Upp Upp Fac Traps Triggered 8 | . 1 . 2 . . . . . . . . . 1 3 . . 1 Indirectly . | . . . . . . . . . . . . . . . . . . Trap Hack Attempts 86 | . . . 38 . 48 . . . . . . . . . . . . Triggered . | . . . . . . . . . . . . . . . . . . Disarmed 1 | . . . . . 1 . . . . . . . . . . . . Reprogrammed 7 | . . . 2 . 5 . . . . . . . . . . . . Reused 4 | . . . . . 2 . . . . . . . . . 2 . . Traps Extracted 8 | . . . 2 . 5 . . . . . . . . . 1 . . Installed 8 | . . . . . 2 . . . . . . . . . 6 . . Triggered 4 | . . . . . 2 . . . . . . . . . 2 . . Most Traps Carried 5 | . . . 2 2 5 5 5 5 5 5 5 5 5 5 5 . . Machines | -11 -10 -10 -9 -9 -8 -8 -8 -8 -6 -6 -6 -6 -6 -5 -5 -5 -4 ---------- Run | Yrd Mat Min Mat Min Mat Sto Rec Scr Fac Ext Cet Arc Hub Fac Upp Upp Fac Machines Disabled 54 | . 3 . 3 . . 4 . . . . . 5 11 15 . . 13 Max in Single Turn 10 | . 1 . 1 . . 1 . . . . . 1 10 5 . . 10 Garrison Access 3 | . . . . . 1 1 . . . . . . . . . . 1 Network Hub 1 | . . . . . . . . . . . . . 1 . . . . Machines Repaired . | . . . . . . . . . . . . . . . . . . Machines Dismantled . | . . . . . . . . . . . . . . . . . . Machines Sabotaged . | . . . . . . . . . . . . . . . . . . Overloaded Fab Kills . | . . . . . . . . . . . . . . . . . . Hacking | -11 -10 -10 -9 -9 -8 -8 -8 -8 -6 -6 -6 -6 -6 -5 -5 -5 -4 --------- Run | Yrd Mat Min Mat Min Mat Sto Rec Scr Fac Ext Cet Arc Hub Fac Upp Upp Fac Machines Accessed 90 | . 10 1 11 . 5 6 12 6 3 14 1 . 6 8 1 . 6 Terminals 48 | . 8 . 7 . 2 3 6 . 1 12 1 . 5 2 . . 1 Fabricators 3 | . . . . . . . . . . . . . . 1 . . 2 Repair Stations 4 | . . . . . 1 1 . . . . . . . 2 . . . Recycling Units 20 | . 2 . 2 . . 1 6 . 2 2 . . . 3 . . 2 Scanalyzers 3 | . . . 2 . 1 . . . . . . . . . . . . Garrison Access 4 | . . . . . 1 1 . . . . . . 1 . . . 1 Total Hacks 273 | . 29 1 45 . 20 19 18 45 4 21 3 . 16 34 1 . 17 Successful 181 | . 18 1 28 . 14 14 15 45 2 13 . . 8 11 1 . 11 Failed 92 | . 11 . 17 . 6 5 3 . 2 8 3 . 8 23 . . 6 Catastrophic 13 | . 2 . 1 . . 1 . . 1 1 . . 4 3 . . . Database Lockouts . | . . . . . . . . . . . . . . . . . . Manual 109 | . 16 . 24 . 6 6 16 . 4 6 1 . 7 11 . . 12 Terminals 143 | . 24 . 31 . 10 9 11 . 1 18 3 . 14 18 . . 4 Fabricators 11 | . . . . . . . . . . . . . . 3 . . 8 Repair Stations 18 | . . . . . 4 7 . . . . . . . 7 . . . Recycling Units 38 | . 5 . 8 . . 2 7 . 3 3 . . . 6 . . 4 Scanalyzers 10 | . . . 6 . 4 . . . . . . . . . . . . Garrison Access 6 | . . . . . 2 1 . . . . . . 2 . . . 1 Terminal Hacks 92 | . 7 1 9 . 2 4 1 45 . 10 . . 6 6 1 . . Record 40 | . . . . . . . . 40 . . . . . . . . . Part Schematic 1 | . . . . . . 1 . . . . . . . . . . . Robot Analysis 5 | . . . . . . . . 5 . . . . . . . . . Prototype ID Bank 7 | . 2 . 1 . 1 . 1 . . . . . 1 1 . . . Open Door 13 | . . 1 . . . 1 . . . 10 . . . . 1 . . Branch Access Points 2 | . . . 1 . . . . . . . . . . 1 . . . Emergency Access Points 3 | . . . 3 . . . . . . . . . . . . . . Terminal Index 2 | . 1 . . . . . . . . . . . . 1 . . . Alert Level 8 | . 1 . 3 . . 1 . . . . . . 2 1 . . . Unreport Threat 3 | . . . 1 . . . . . . . . . 1 1 . . . Locate Traps 4 | . 1 . . . 1 1 . . . . . . . 1 . . . Dispatch Records 2 | . 1 . . . . . . . . . . . 1 . . . . Zone Layout 2 | . 1 . . . . . . . . . . . 1 . . . . Fabricator Hacks 5 | . . . . . . . . . . . . . . 1 . . 4 Network Status 2 | . . . . . . . . . . . . . . 1 . . 1 Load Schematic 2 | . . . . . . . . . . . . . . . . . 2 Build 1 | . . . . . . . . . . . . . . . . . 1 Repair Station Hacks 11 | . . . . . 4 6 . . . . . . . 1 . . . Scan Component 6 | . . . . . 2 3 . . . . . . . 1 . . . Repair 5 | . . . . . 2 3 . . . . . . . . . . . Recycling Unit Hacks 5 | . 1 . 3 . . . 1 . . . . . . . . . . Report Inventory 4 | . 1 . 2 . . . 1 . . . . . . . . . . Retrieve Components 1 | . . . 1 . . . . . . . . . . . . . . Scanalyzer 10 | . . . 6 . 4 . . . . . . . . . . . . Insert Component 4 | . . . 3 . 1 . . . . . . . . . . . . Analyze 6 | . . . 3 . 3 . . . . . . . . . . . . Garrison Access Hacks 3 | . . . . . 1 1 . . . . . . . . . . 1 Seal Access 3 | . . . . . 1 1 . . . . . . . . . . 1 Unauthorized Hacks 55 | . 10 . 10 . 3 3 13 . 2 3 . . 2 3 . . 6 Terminals 31 | . 7 . 7 . 3 2 7 . . 2 . . 2 . . . 1 Track 4 | . . . . . 1 1 . . . 1 . . 1 . . . . Botnet 8 | . 2 . 2 . . . 2 . . . . . 1 . . . 1 Disrupt 2 | . . . . . . 1 . . . 1 . . . . . . . Operators 1 | . . . . . 1 . . . . . . . . . . . . Skim 16 | . 5 . 5 . 1 . 5 . . . . . . . . . . Fabricators 3 | . . . . . . . . . . . . . . . . . 3 Prioritize 1 | . . . . . . . . . . . . . . . . . 1 Liberate 1 | . . . . . . . . . . . . . . . . . 1 Recompile 1 | . . . . . . . . . . . . . . . . . 1 Repair Stations . | . . . . . . . . . . . . . . . . . . Recycling Units 21 | . 3 . 3 . . 1 6 . 2 1 . . . 3 . . 2 Reject 3 | . 1 . 2 . . . . . . . . . . . . . . Recyclers 1 | . . . . . . . . . . . . . . 1 . . . Mask 2 | . 1 . 1 . . . . . . . . . . . . . . Tunnel 8 | . 1 . . . . 1 6 . . . . . . . . . . Fedlink 7 | . . . . . . . . . 2 1 . . . 2 . . 2 Scanalyzers . | . . . . . . . . . . . . . . . . . . Garrison Access . | . . . . . . . . . . . . . . . . . . Data Cores Recovered 2 | . . . . . . . . . . . . . 1 1 . . . Used 1 | . . . . . . . . . . . . . 1 . . . . Hacking Detections 53 | . 8 . 10 . 4 4 6 . 2 6 1 . 6 3 . . 3 Full Trace Events 8 | . . . 1 . 1 2 . . . 2 1 . 1 . . . . Feedback Events . | . . . . . . . . . . . . . . . . . . Feedback Blocked . | . . . . . . . . . . . . . . . . . . Robot Schematics Acquired . | . . . . . . . . . . . . . . . . . . Robots Built . | . . . . . . . . . . . . . . . . . . Authchips . | . . . . . . . . . . . . . . . . . . Time . | . . . . . . . . . . . . . . . . . . Total Robot Build Rating . | . . . . . . . . . . . . . . . . . . Part Schematics Acquired 5 | . . . 3 . 1 1 . . . . . . . . . . . Parts Built 2 | . . . . . . . . . . . . . . . . . 2 Authchips 1 | . . . . . . . . . . . . . . . . . 1 Time 42 | . . . . . . . . . . . . . . . . . 42 Total Part Build Rating 8 | . . . . . . . . . . . . . . . . . 8 Parts Repaired 5 | . . . . . 2 3 . . . . . . . . . . . Time 190 | . . . . . 82 108 . . . . . . . . . . . Parts Recycled . | . . . . . . . . . . . . . . . . . . Recycled Matter . | . . . . . . . . . . . . . . . . . . Retrieved Matter . | . . . . . . . . . . . . . . . . . . Retrieved Components 9 | . . . 9 . . . . . . . . . . . . . . Parts Scanalyzed 4 | . . . 3 . 1 . . . . . . . . . . . . Part Schematics Acquired 4 | . . . 3 . 1 . . . . . . . . . . . . Parts Damaged . | . . . . . . . . . . . . . . . . . . Bothacking | -11 -10 -10 -9 -9 -8 -8 -8 -8 -6 -6 -6 -6 -6 -5 -5 -5 -4 ------------ Run | Yrd Mat Min Mat Min Mat Sto Rec Scr Fac Ext Cet Arc Hub Fac Upp Upp Fac Used RIF Installer . | . . . . . . . . . . . . . . . . . . Robots Hacked . | . . . . . . . . . . . . . . . . . . Non-combat . | . . . . . . . . . . . . . . . . . . Combat . | . . . . . . . . . . . . . . . . . . Robot Hacks Applied . | . . . . . . . . . . . . . . . . . . Relay Couplers Released 1 | . . . . . . . . . . . . . . . . . 1 Machine Destruction 1 | . . . . . . . . . . . . . . . . . 1 Fabnet Peak Effective % . | . . . . . . . . . . . . . . . . . . Robots Rewired 3 | . . . . . . . . . . 3 . . . . . . . Allies Hacked . | . . . . . . . . . . . . . . . . . . Hacks Repelled . | . . . . . . . . . . . . . . . . . . Allies | -11 -10 -10 -9 -9 -8 -8 -8 -8 -6 -6 -6 -6 -6 -5 -5 -5 -4 -------- Run | Yrd Mat Min Mat Min Mat Sto Rec Scr Fac Ext Cet Arc Hub Fac Upp Upp Fac Total Allies 27 | . . . . . . 2 . . . 20 5 . . . . . . Largest Group 10 | . . . . . . 2 . . . 10 10 6 4 . . . . Highest-Rated Group 639 | . . . . . . 62 . . . 392 639 639 377 . . . . Highest-Rated Ally 159 | . . . . . . 31 . . . 159 159 159 96 . . . . Total Orders . | . . . . . . . . . . . . . . . . . . Ally Attacks 257 | . . . . . . 7 . . . 124 35 36 55 . . . . Total Damage 8096 | . . . . . . 131 . . . 3049 977 1656 2283 . . . . Kills 41 | . . . . . . 1 . . . 16 7 5 12 . . . . Allies Corrupted . | . . . . . . . . . . . . . . . . . . Allies Melted 1 | . . . . . . . . . . . . . 1 . . . . Intel | -11 -10 -10 -9 -9 -8 -8 -8 -8 -6 -6 -6 -6 -6 -5 -5 -5 -4 ------- Run | Yrd Mat Min Mat Min Mat Sto Rec Scr Fac Ext Cet Arc Hub Fac Upp Upp Fac Active Infowar (turns) 14064 | 7 914 356 2581 331 969 1121 1334 2524 143 524 . . 217 1034 1124 78 807 Sensors 4862 | . 503 356 484 . . 8 . . 142 118 . . 216 1030 1124 78 803 Terrain 11628 | . . . 1589 331 969 1113 1334 2524 143 522 . . 216 1031 998 78 780 Structural 980 | . . . 980 . . . . . . . . . . . . . . Seismic 268 | 7 261 . . . . . . . . . . . . . . . . T.N.C. 150 | . 150 . . . . . . . . . . . . . . . . Robot Analysis Total 5 | . . . . . . . . 5 . . . . . . . . . Derelict Logs Recovered 7 | . . 3 . 2 . . . . . . . . . . 1 1 . Drone Launches . | . . . . . . . . . . . . . . . . . . Drone Recoveries . | . . . . . . . . . . . . . . . . . . Exploration | -11 -10 -10 -9 -9 -8 -8 -8 -8 -6 -6 -6 -6 -6 -5 -5 -5 -4 ------------- Run | Yrd Mat Min Mat Min Mat Sto Rec Scr Fac Ext Cet Arc Hub Fac Upp Upp Fac Turns Passed 18693 | 122 1657 389 2768 331 969 1159 1334 2622 143 1393 373 583 649 1442 1410 78 1271 Spaces Moved 9175 | 82 1053 323 1300 210 367 454 531 1584 78 656 125 236 294 652 662 45 523 Core 35 | 17 1 . . . . . . . . . . . . . . . 17 Treads 7459 | 12 141 . 1088 210 367 454 531 1434 78 656 125 236 294 652 662 45 474 Legs 25 | . . . . . . . . . . . . . . . . . 25 Wheels 1656 | 53 911 323 212 . . . . 150 . . . . . . . . 7 Hover . | . . . . . . . . . . . . . . . . . . Flight . | . . . . . . . . . . . . . . . . . . Fastest Speed 50 | 50 100 110 110 145 145 145 170 105 170 167 163 163 163 160 170 170 50 Average Speed 155 | 95 118 110 157 145 145 165 170 164 170 169 170 163 163 164 170 170 166 Slowest Speed 250 | 160 250 110 240 145 145 170 170 250 170 170 250 163 163 170 170 170 250 Overloaded Moves . | . . . . . . . . . . . . . . . . . . Propulsion Burnouts . | . . . . . . . . . . . . . . . . . . Robots Hopped . | . . . . . . . . . . . . . . . . . . Potential Cave-ins . | . . . . . . . . . . . . . . . . . . Cave-ins Triggered . | . . . . . . . . . . . . . . . . . . Exploration Rate (%) 53 | 4 99 71 96 39 31 65 99 92 3 84 56 89 27 20 66 8 14 Regions Visited 17 Branch Regions 11 Pre-discovered Areas 18 | . 2 . 2 1 . 1 7 4 1 . . . . . . . . Known Exits Taken 16 | . 1 1 1 1 1 1 1 1 1 1 1 1 1 1 1 1 . Unknown Exits Taken 1 | 1 . . . . . . . . . . . . . . . . . Scrap Searched 10 | . . 1 . . . . . 6 . . . . . . 3 . . Spaces Dug 19 | . 3 . . . 1 2 . . . . . . . 8 1 . 4 Terrain Destroyed 448 | . 25 . 21 . 1 2 . . . . . 5 169 153 11 . 61 Melee 12 | . 3 . . . 1 2 . . . . . . . 2 . . 4 Projectile 75 | . . . . . . . . . . . . 5 7 42 10 . 11 AOE 355 | . 22 . 21 . . . . . . . . . 162 108 . . 42 Terrain Rammed . | . . . . . . . . . . . . . . . . . . Walls Destroyed . | . . . . . . . . . . . . . . . . . . Machines Disabled . | . . . . . . . . . . . . . . . . . . Actions | -11 -10 -10 -9 -9 -8 -8 -8 -8 -6 -6 -6 -6 -6 -5 -5 -5 -4 --------- Run | Yrd Mat Min Mat Min Mat Sto Rec Scr Fac Ext Cet Arc Hub Fac Upp Upp Fac Total 12337 | 108 1301 353 1794 230 771 723 956 1607 85 850 249 367 396 874 878 47 748 Wait 1954 | 6 95 24 263 15 315 171 418 5 4 85 90 88 58 100 145 3 69 Move 9158 | 81 1052 322 1299 209 366 453 530 1583 77 655 124 235 293 651 661 44 523 Hop . | . . . . . . . . . . . . . . . . . . Pick Up 80 | 5 12 1 18 1 6 4 . 1 . 4 1 4 3 6 4 . 10 Fast Attach 80 | 7 7 . 7 . 2 7 1 5 . 5 4 2 . 10 4 . 19 Attach 34 | . 3 . 5 . 2 1 1 . 2 2 3 . . 6 2 . 7 Detach 16 | . 4 . 2 . 1 1 . 1 . 2 2 . . 2 . . 1 Swap 142 | 1 18 4 22 1 7 11 1 5 . 12 1 1 6 20 8 . 24 Drop 97 | 1 14 1 25 1 5 8 1 7 . 4 3 3 4 9 3 . 8 Fire 612 | 7 91 1 115 3 16 60 4 . 2 46 15 34 32 64 45 . 77 Melee 35 | . 5 . . . 1 7 . . . . 6 . . 6 . . 10 Ram . | . . . . . . . . . . . . . . . . . . Kick . | . . . . . . . . . . . . . . . . . . Crush . | . . . . . . . . . . . . . . . . . . Escape Stasis 1 | . . . . . . . . . . 1 . . . . . . . Rewire 34 | . . . . . . . . . . 34 . . . . . . . Trap 94 | . . . 38 . 50 . . . . . . . . . 6 . . Miscellaneous . | . . . . . . . . . . . . . . . . . . Route ------- -11/Scrapyard -10/Materials (discovered 6 exits: *Mat x3 / *Min x2 / *Sub) -10/Mines (discovered 2 exits: *Mat / Sub) -9/Materials (discovered 4 exits: *Mat x3 / *Min) -9/Mines (discovered 3 exits: *Mat x2 / [*Zio]) -8/Materials (discovered 3 exits: Fac x2 / *Sto) -8/Storage (discovered 2 exits: Fac / *Rec) -8/Recycling (discovered 2 exits: *Fac / *Scr) -8/Scraptown (discovered 2 exits: *Fac x2) -6/Factory (discovered 6 exits: Fac x2 / Low x2 / *Ext x2) -6/Extension (discovered 3 exits: *Fac x2 / *Cet) -6/Cetus -6/Archives (discovered 3 exits: *Fac / *Hub x2) -6/Hub_04(d) (discovered 2 exits: *Fac x2) -5/Factory (discovered 2 exits: *Upp x2) -5/Upper Caves -5/Upper Caves (discovered 2 exits: *Fac / Zhi) -4/Factory (discovered 2 exits: [Res] / Upp) History --------- Turn | Location | Event 3 | -11/Scrapyard | Discovered new exit (range 16) 123 | -11/Scrapyard | Entered Materials 355 | -10/Materials | Build established: Mutant 408 | -10/Materials | Discovered new exit (range 12) 409 | -10/Materials | Discovered new exit (range 12) 836 | -10/Materials | Discovered new exit (range 15) 1131 | -10/Materials | Identified exit to Mines 1210 | -10/Materials | Identified exit to Materials 1347 | -10/Materials | Discovered exit to Materials (range 15) 1482 | -10/Materials | Discovered exit to Materials (range 3) 1507 | -10/Materials | Discovered new exit (range 10) 1574 | -10/Materials | Learned 4 Subcaves zone layouts 1612 | -10/Materials | Learned location of Mines (-9) 1617 | -10/Materials | Learned location of 2 exits from Subcaves 1618 | -10/Materials | Learned location of 2 exits from Subcaves 1619 | -10/Materials | Learned location of 2 exits from Mines 1627 | -10/Materials | Loaded intel: 2 recycling unit locations 1646 | -10/Materials | Identified exit to Subcaves 1780 | -10/Materials | Entered Mines 1834 | -10/Mines | Met a Derelict who couldn't figure out how to use a Trap Extractor 1895 | -10/Mines | Learned Materials garrison access intel 1904 | -10/Mines | Learned location of 1 exit from Materials 2169 | -10/Mines | Entered Materials 2169 | -9/Materials | Evolved 2 slots: Utility x2 2170 | -9/Materials | Identified exit to Mines 2171 | -9/Materials | Identified exit to Materials 2568 | -9/Materials | Discovered exit to Materials (range 7) 3410 | -9/Materials | Discovered exit to Materials (range 10) 4086 | -9/Materials | Loaded intel: 12 trap records 4151 | -9/Materials | Learned Storage trap positions 4208 | -9/Materials | Learned location of 1 exit from Storage 4290 | -9/Materials | Learned location of 1 exit from Storage 4317 | -9/Materials | Learned 4 Recycling zone layouts 4394 | -9/Materials | Learned Storage security intel 4439 | -9/Materials | Learned location of 2 exits from Materials 4937 | -9/Materials | Entered Mines 4941 | -9/Mines | A Derelict revealed a hidden shortcut to a safe place 4943 | -9/Mines | Learned location of Zion (-7) 4972 | -9/Mines | Discovered exit to Materials (range 6) 4994 | -9/Mines | Learned 4 Materials zone layouts 5061 | -9/Mines | Discovered exit to Materials (range 9) 5106 | -9/Mines | A weapon hastily lodged in a ceiling crevice suddenly fell to the ground 5121 | -9/Mines | Found a damaged Exp. Sensor Array with a note attached 5126 | -9/Mines | Found Prototype Device 5268 | -9/Mines | Entered Materials 5268 | -8/Materials | Evolved 2 slots: Propulsion x1, Utility x1 5269 | -8/Materials | Identified exit to Storage 5269 | -8/Materials | Identified exit to Factory 5271 | -8/Materials | Loaded intel: 1 garrison access location 5882 | -8/Materials | Repaired Imp. Trap Extractor 5923 | -8/Materials | Identified Exp. Sensor Array 5998 | -8/Materials | Repaired Hpw. Shotgun 6237 | -8/Materials | Entered Storage 6238 | -8/Storage | Identified exit to Recycling 6239 | -8/Storage | Loaded intel: 16 trap records 6316 | -8/Storage | Repaired Imp. Terrain Scanner 6356 | -8/Storage | Repaired Hpw. Shotgun 6389 | -8/Storage | Repaired Hrd. Light Armor Plating 7333 | -8/Storage | Met a pair of Derelict thieves 7389 | -8/Storage | Used back door to open Recycling access 7396 | -8/Storage | Entered Recycling 7397 | -8/Recycling | Identified exit to Scraptown 8077 | -8/Recycling | Discovered new exit (range 11) 8340 | -8/Recycling | Learned location of 1 exit from Extension 8454 | -8/Recycling | Scanned before Scraplab entrance 8463 | -8/Recycling | Learned Factory fabricator intel 8509 | -8/Recycling | Learned 8 Factory zone layouts 8543 | -8/Recycling | Learned Storage trap positions 8603 | -8/Recycling | Learned Storage emergency access door positions 8649 | -8/Recycling | Learned Factory security intel 8703 | -8/Recycling | Learned location of Storage (-8) 8715 | -8/Recycling | Entered Scraplab 8730 | -8/Recycling | Entered Scraptown 8836 | -8/Scraptown | Heard Great Nut preacher, LISTEN AND RECITE! 8935 | -8/Scraptown | Visited Junk Repository 9017 | -8/Scraptown | Visited Comm Corps 9423 | -8/Scraptown | Discovered new exit (range 10) 9530 | -8/Scraptown | Visited Cyclists 9551 | -8/Scraptown | Visited Symbiants 9588 | -8/Scraptown | Visited Red Mages 9685 | -8/Scraptown | Visited UFD Registry 9685 | -8/Scraptown | Registered with UFD as "Kinetiplate" 9709 | -8/Scraptown | Visited Awakened 9785 | -8/Scraptown | Visited A0-MCA Data Center 9797 | -8/Scraptown | Given an A+ rating by A0-MCA 9835 | -8/Scraptown | Visited Scrap Suit Storage 9880 | -8/Scraptown | Visited DA-N13 Charitable Foundation 9896 | -8/Scraptown | Found DCF Scrap (30 items) 10185 | -8/Scraptown | Visited Analyses Database 10214 | -8/Scraptown | Visited Cartography Club 10257 | -8/Scraptown | Visited Abandonware Association 10284 | -8/Scraptown | Visited Scrapoid Research Area 10311 | -8/Scraptown | Visited Chapter 10 10539 | -8/Scraptown | Learned location of Mines (-8) 10539 | -8/Scraptown | Learned location of Lower Caves (-7) 10539 | -8/Scraptown | Learned location of Cetus (-6) 10539 | -8/Scraptown | Learned 12 Materials zone layouts 10539 | -8/Scraptown | Learned 8 Research zone layouts 10539 | -8/Scraptown | Learned 16 Research zone layouts 10539 | -8/Scraptown | Learned 4 Recycling zone layouts 10539 | -8/Scraptown | Learned 8 Lower Caves zone layouts 10539 | -8/Scraptown | Learned 8 Proximity Caves zone layouts 10539 | -8/Scraptown | Learned 4 Hub_04(d) zone layouts 10539 | -8/Scraptown | Learned Storage emergency access door positions 10539 | -8/Scraptown | Learned location of 2 exits from Factory 10539 | -8/Scraptown | Learned location of 3 exits from Upper Caves 10539 | -8/Scraptown | Identified exit to Factory 11047 | -8/Scraptown | Entered Cyclist Reading Room 11261 | -8/Scraptown | Met Optimus 11261 | -8/Scraptown | Accepted into 0bPrime 11352 | -8/Scraptown | Entered Factory 11352 | -6/Factory | Evolved 4 slots: Propulsion x1, Utility x2, Weapon x1 11353 | -6/Factory | Identified exit to Factory 11353 | -6/Factory | Identified exit to Lower Caves 11354 | -6/Factory | Identified exit to Extension 11357 | -6/Factory | Loaded intel: 6 fabricator locations 11425 | -6/Factory | Loaded intel: 8 recycling unit locations 11458 | -6/Factory | Discovered exit to Extension (range 13) 11475 | -6/Factory | Learned location of Protoforge (-2) 11495 | -6/Factory | Entered Extension 11592 | -6/Extension | Rescued A7 11635 | -6/Extension | Rescued a captive Derelict 11777 | -6/Extension | Rescued a captive Derelict 11777 | -6/Extension | Rescued a captive Derelict 11791 | -6/Extension | Rescued a captive Derelict 11844 | -6/Extension | Rescued a captive Derelict 11845 | -6/Extension | Rescued a captive Derelict 11938 | -6/Extension | Build established: Gunner 12190 | -6/Extension | Spotted B-75 Beast 12209 | -6/Extension | Spotted B-75 Beast 12221 | -6/Extension | Allies destroyed B-75 Beast 12235 | -6/Extension | Allies destroyed B-75 Beast 12256 | -6/Extension | Lost 4 allies 12334 | -6/Extension | Rescued a captive Derelict 12334 | -6/Extension | Rescued a captive Derelict 12369 | -6/Extension | Rescued a captive Derelict 12370 | -6/Extension | Rescued a captive Derelict 12424 | -6/Extension | Rescued a captive Derelict 12425 | -6/Extension | Rescued a captive Derelict 12432 | -6/Extension | Loaded intel: 2 recycling unit locations 12594 | -6/Extension | Rescued a captive Derelict 12594 | -6/Extension | Rescued a captive Derelict 12705 | -6/Extension | Rescued a captive Derelict 12708 | -6/Extension | Rescued a captive Derelict 12842 | -6/Extension | Discovered exit to Factory (range 10) 12844 | -6/Extension | Discovered new exit (range 6) 12859 | -6/Extension | Identified exit to Cetus 12888 | -6/Extension | Entered Cetus 12888 | -6/Cetus | Accompanied by 10 allies (A7) 12893 | -6/Cetus | Acquired a Cetus Manufacturing Module code from A7 12909 | -6/Cetus | Spotted Cetus Guard 12910 | -6/Cetus | Spotted Cetus Guard 12912 | -6/Cetus | Spotted Cetus Guard 12913 | -6/Cetus | Spotted Cetus Guard 12936 | -6/Cetus | Allies destroyed Cetus Guard 12941 | -6/Cetus | Destroyed Cetus Guard 12946 | -6/Cetus | Destroyed Cetus Guard 12951 | -6/Cetus | Allies destroyed Cetus Guard 12979 | -6/Cetus | Lost 6 parts (1p3n1u1w) 12984 | -6/Cetus | Lost 8 allies 13099 | -6/Cetus | Started Cetus Manufacturing Module 13124 | -6/Cetus | Manufactured an Enhanced Grunt 13149 | -6/Cetus | Manufactured an Enhanced Grunt 13151 | -6/Cetus | Discovered new exit (range 16) 13174 | -6/Cetus | Manufactured an Enhanced Grunt 13174 | -6/Cetus | Identified exit to Archives 13199 | -6/Cetus | Manufactured an Enhanced Grunt 13224 | -6/Cetus | Manufactured an Enhanced Grunt 13261 | -6/Cetus | Entered Archives 13261 | -6/Archives | Accompanied by 6 allies (A7) 13281 | -6/Archives | Build established: Scavenger-Mutant 13348 | -6/Archives | Discovered new exit (range 16) 13417 | -6/Archives | Discovered new exit (range 15) 13448 | -6/Archives | Discovered exit to Factory (range 16) 13625 | -6/Archives | Build established: Scavenger-Tank 13762 | -6/Archives | Identified exit to Hub_04(d) 13844 | -6/Archives | Entered Hub_04(d) 13844 | -6/Hub_04(d) | Accompanied by 4 allies 13848 | -6/Hub_04(d) | Spotted B-75 Beast 13867 | -6/Hub_04(d) | Allies destroyed B-75 Beast 13949 | -6/Hub_04(d) | Discovered exit to Factory (range 12) 14101 | -6/Hub_04(d) | Disrupted transfer network 14269 | -6/Hub_04(d) | Garrison activated, responded to threat 14465 | -6/Hub_04(d) | Discovered exit to Factory (range 12) 14477 | -6/Hub_04(d) | Network Hub disabled 14493 | -6/Hub_04(d) | Entered Factory 14493 | -5/Factory | Evolved 2 slots: Utility x2 14512 | -5/Factory | Loaded intel: 8 recycling unit locations 14860 | -5/Factory | Build established: Scavenger-Assassin 15913 | -5/Factory | Discovered new exit (range 14) 15914 | -5/Factory | Identified exit to Upper Caves 15935 | -5/Factory | Entered Upper Caves 15936 | -5/Upper Caves | Identified exit to Upper Caves 16043 | -5/Upper Caves | Build established: Skirmisher 16496 | -5/Upper Caves | Spotted B-75 Beast 16760 | -5/Upper Caves | Destroyed B-75 Beast 17113 | -5/Upper Caves | Learned Factory emergency access door positions 17345 | -5/Upper Caves | Entered another Upper Caves area 17346 | -5/Upper Caves | Identified exit to Factory 17346 | -5/Upper Caves | Identified exit to Zhirov 17396 | -5/Upper Caves | Learned location of 1 exit from Factory 17423 | -5/Upper Caves | Entered Factory 17423 | -4/Factory | Evolved 2 slots: Power x1, Utility x1 17424 | -4/Factory | Identified exit to Upper Caves 17574 | -4/Factory | Loaded intel: 8 recycling unit locations 17581 | -4/Factory | Discovered new exit (range 20) 18384 | -4/Factory | Fabricated Med. Reflective Plating (x2) 18401 | -4/Factory | Build established: Scavenger-Assassin 18608 | -4/Factory | Core integrity fell below 50% 18679 | -4/Factory | Core integrity fell below 20% 18694 | -4/Factory | Destroyed by H-77 Assassin with Coil Gun Last Messages --------------- 18687_ Slug penetrates Wall. 18687_ R-10 Processor collects Wheel. 18688_ Myomer Leg destroyed. 18688_ Penetrated by Slug. 18688_ Com. Matter Pod destroyed. 18688_ Slug penetrates S-27 Virus. 18688_ Penetrated by Slug. 18688_ S-27 Virus destroyed. 18689_ U-05 Engineer works on Manufacturing Mainframe. 18690_ Wall collapses. 18690_ Myomer Leg destroyed. 18691_ R-10 Processor collects Phase Gun. 18691_ U-05 Engineer builds a Wall. 18692_ Penetrated by Slug. 18693_ Slug penetrates R-10 Processor. 18693_ Slug penetrates Wall. 18693_ Mic. Fission Core destroyed. 18694_ U-05 Engineer works on Manufacturing Mainframe. Map ----- +----------------------------------------------------+ | ???????????????????? # ???? ?? ????????#????????? | | ????????????????# ? # # "?" ??##??###??????? | | ???????????????####### # """ ###??????????# | | ????????????? ?? ? ? # ?"" ??#??#?#??????#? | | ??????????? ???? + ? ####?###?##??? | | ?????????? ? ? ? # " " ####?##?##?##? | | ?????????? ? ? # "Y" #########??#?# | | ????????? ? # """? ###########??# | | ???????# ? ?? ? # ?? ####?#?####?## | | ???????? ? ? #################?##### | | ??????? #####?###########?###?# | | ????????#??##?? ######?################ | | ???????#?#??### ? ####################### | | ??????#######?# ? ######## ### | | ????########?## ######## ### | | ?????#?######?####?#######s######## ### | | ???????#? ## =% + """ """ ##? | | ????#???? ? ? ## [s # """ """ ### | | ????#?### ? ? ## ! # """ """ ### | | ????##?## ? ? ?# # ] ### | | ????##?## ? ? ? ## # """ """ ### | | ????#?###? ? ? ## R # ] """ """ ### | | ????##?#? ? ? ## << %h F" # """ """ ### | | ????#?##? ? ?# u< h % " # ### | | ????###?# ? ## = %! # ### | | ?????####?" "" ####@##/############+######## | | ???? ?? + "R"" # # %m %* | | ?????##?? """ ? ? #% #%%t[% [% | | ?????###??#?###?###+##### =*%** | | ???????##??######## !!! % | | ?????????? ?##### %=! | | ????????? ? ?##### | | ?????????? ? | | ???????? ###### ^ | | ??????????? ??##### k | | ??????????? #? # | | ?????????????? ? # ^ | | ??????????????????# | | ????????????????? + | | ????????????????? # | | ??????????????????# "T"" ? | | ?????????????????? """"" "? | | ?????????????????? ???? ?? ?? ?? | | ??????????????????? ????? ?? ????????? | | ????????????????????????? ###??????????? ?? ? | | ??????????????????????????#"##?????????????? ????? | | ?????????????????????????????????????????????????? | | ?????????????????????????????????????????????????? | | ?????????????????????????????????????????????????? | | ?????????????????????????????????????????????????? | +----------------------------------------------------+ Best States ------------- Heat Dissipation 71 Energy Generation 37 Energy Capacity 395 Matter Stores 304 Matter Capacity 450 Sight Range 16 Robot Scan Range 20 Terrain Scan Range 20 Terrain Scan Density 210 Base Temperature (-) 200 Armor Coverage 1350 Resistance: KI 20 Resistance: TH 15 Core Shielding 20 Weapon Shielding 33 Evasion (%) 50 Targeting Accuracy 8 Target Analysis 8 Recoil Reduction 4 Matter Filtering 30 Kinecelleration 40 Offensive Hacking 12 Defensive Hacking 12 Authchip Count 1 Trap Extractor Capacity 6 Item Schematics ----------------- Imp. Trap Extractor | -9/Materials | Scanalyzed Hacking Suite | -9/Materials | Scanalyzed Hpw. Shotgun | -9/Materials | Scanalyzed Exp. Sensor Array | -8/Materials | Scanalyzed Med. Reflective Plating | -8/Storage | Hacked Robot Schematics ------------------ None Fabricated ------------ Med. Reflective Plating | x2 | -4/Factory | Authchip Repaired ---------- Imp. Trap Extractor | 42% | -8/Materials Hpw. Shotgun | 31% | -8/Materials Imp. Terrain Scanner | 45% | -8/Storage Hpw. Shotgun | 57% | -8/Storage Hrd. Light Armor Plating | 67% | -8/Storage Alien Tech Used ----------------- None Achievements -------------- None Challenges ------------ None Game ------ Seed TiamatLobotomySuite Manual? 0 Play Time 02:57:54 Cumulative 240.9 hours Start 2025.06.06 @ 19:15:47 End 2025.06.06 @ 22:19:11 Sessions 1 Manual Loads 0 Difficulty Rogue Special Mode None Game No. 186 Rogue 186 Adventurer 0 Explorer 0 Win Type - Total 6 Types 4/0/1/1/0/0/0/0/0/0 Lore% 79 Gallery% 68 Achievement% 57 Wizard Run 0 Options --------- Layout 2 ASCII 0 Keyboard 0 Movement Numpad Keybinds 0 Fullscreen 2 Font 16/Terminus Map View 55x47 Zoom Use 0% Tactical HUD 1 Map Filters NONE Filters NONE Steam 1 RUN: 9c6a5ebf-b885-477a-a850-b33d550d15ce